fUSD/lending_fUSD_20250911
["ID","MTS","AMOUNT","RATE_DAILY","PERIOD"]
[384917958,1757626312026,-515.16,0.00027945,7]
[384917959,1757626312035,-652.28,0.00027945,7]
[384917960,1757626312044,-1741.11,0.00027945,7]
[384917961,1757626312055,-400.0,0.00027945,7]
[384917962,1757626312064,-655.06,0.00027945,7]
[384917963,1757626312074,-2288.0,0.00027945,7]
[384917964,1757626312083,-2114.84,0.00027945,7]
[384917965,1757626312093,-3501.41,0.00027945,7]
[384917966,1757626312102,-2186.67,0.00027945,7]
[384917967,1757626312112,-1658.85,0.00027945,7]
[384917968,1757626312122,-400.0,0.00027945,7]
[384917969,1757626312131,-400.0,0.00027945,7]
[384917970,1757626312140,-2467.2,0.00027945,7]
[384917971,1757626312150,-3472.55,0.00027945,7]
[384917972,1757626312159,-1198.11,0.00027945,7]
[384917973,1757626312169,-3050.02,0.00027945,7]
[384917974,1757626312178,-400.0,0.00027945,7]
[384917975,1757626312188,-400.0,0.00027945,7]
[384917976,1757626312198,-2013.25,0.00027945,7]
[384917977,1757626312208,-1097.09,0.00027945,7]
[384917978,1757626312217,-2079.28,0.00027945,7]
[384917979,1757626312227,-157.302772,0.00027945,7]
[384917980,1757626312236,-400.0,0.00027945,7]
[384917981,1757626312246,-2509.66,0.00027945,7]
[384917982,1757626312256,-1719.95,0.00027945,7]
[384917983,1757626312265,-421.80833439,0.00027945,7]
[384917984,1757626312275,-532.61,0.00027945,7]
[384917985,1757626312284,-806.09,0.00027945,7]
[384917986,1757626312294,-3246.48,0.00027945,7]
[384917987,1757626312304,-317.52169439,0.00027945,7]
[384917988,1757626312318,-400.0,0.00027945,7]
[384917989,1757626312327,-400.0,0.00027945,7]
[384917990,1757626312337,-2500.02,0.00027945,7]
[384917991,1757626312347,-3518.63,0.00027945,7]
[384917992,1757626312357,-1559.74,0.00027945,7]
[384917993,1757626312367,-1747.77,0.00027945,7]
[384917994,1757626312377,-400.0,0.00027945,7]
[384917995,1757626312386,-2613.79,0.00027945,7]
[384917996,1757626312396,-2038.75,0.00027945,7]
[384917997,1757626312405,-2348.36,0.00027945,7]
[384917998,1757626312415,-400.0,0.00027945,7]
[384917999,1757626312424,-7246.99,0.00027945,7]
[384918000,1757626312435,-1568.42,0.00027945,7]
[384918001,1757626312445,-912.3,0.00027945,7]
[384918002,1757626312456,-904.0,0.00027945,7]
[384918003,1757626312467,-400.0,0.00027945,7]
[384918004,1757626312478,-3303.81,0.00027945,7]
[384918005,1757626312489,-2198.79,0.00027945,7]
[384918006,1757626312499,-400.0,0.00027945,7]
[384918007,1757626312509,-446.03354819,0.00027945,7]
[384918008,1757626312518,-400.0,0.00027945,7]
[384918009,1757626312528,-400.0,0.00027945,7]
[384918010,1757626312538,-400.0,0.00027945,7]
[384918011,1757626312548,-400.0,0.00027945,7]
[384918012,1757626312558,-5323.63,0.00027945,7]
[384918013,1757626312568,-400.0,0.00027945,7]
[384918014,1757626312579,-400.0,0.00027945,7]
[384918015,1757626312588,-1964.05,0.00027945,7]
[384918016,1757626312598,-400.0,0.00027945,7]
[384918017,1757626312608,-2585.39,0.00027945,7]
[384918018,1757626312618,-1682.02,0.00027945,7]
[384918019,1757626312627,-400.0,0.00027945,7]
[384918020,1757626312637,-400.0,0.00027945,7]
[384918021,1757626312646,-636.85,0.00027945,7]
[384918022,1757626312658,-1288.21,0.00027945,7]
[384918023,1757626312669,-400.0,0.00027945,7]
[384918024,1757626312679,-400.0,0.00027945,7]
[384918025,1757626312689,-2145.75,0.00027945,7]
[384918026,1757626312699,-488.27,0.00027945,7]
[384918027,1757626312708,-1770.84,0.00027945,7]
[384918028,1757626312718,-2743.81,0.00027945,7]
[384918029,1757626312728,-400.0,0.00027945,7]
[384918030,1757626312737,-758.56,0.00027945,7]
[384918031,1757626312746,-2515.62,0.00027945,7]
[384918032,1757626312756,-400.0,0.00027945,7]
[384918033,1757626312766,-6124.7,0.00027945,7]
[384918034,1757626312775,-1842.2,0.00027945,7]
[384918035,1757626312784,-498.67,0.00027945,7]
[384918036,1757626312794,-400.0,0.00027945,7]
[384918037,1757626312803,-400.0,0.00027945,7]
[384918038,1757626312812,-527.90531442,0.00027945,2]
[384918039,1757626312822,-424.56523068,0.00027945,7]
[384918040,1757626312831,-2378.56,0.00027945,7]
[384918041,1757626312841,-532.95,0.00027945,7]
[384918042,1757626312854,-658.08,0.00027945,7]
[384918043,1757626312863,-911.74,0.00027945,7]
[384918044,1757626312873,-2516.19,0.00027945,7]
[384918045,1757626312883,-694.77,0.00027945,7]
[384918046,1757626312892,-4761.83,0.00027945,7]
[384918047,1757626312902,-400.0,0.00027945,7]
[384918048,1757626312912,-400.0,0.00027945,7]
[384918049,1757626312921,-777.16,0.00027945,7]
[384918050,1757626312931,-400.0,0.00027945,7]
[384918051,1757626312940,-803.78,0.00027945,7]
[384918052,1757626312950,-685.29,0.00027945,7]
[384918053,1757626312959,-779.77,0.00027945,7]
[384918054,1757626312969,-400.0,0.00027945,7]
[384918055,1757626312979,-400.0,0.00027945,7]
[384918056,1757626312989,-1712.09,0.00027945,7]
[384918057,1757626312998,-594.22,0.00027945,7]
[384918058,1757626313007,-3055.99,0.00027945,7]
[384918059,1757626313017,-1020.79,0.00027945,7]
[384918060,1757626313027,-400.0,0.00027945,7]
[384918061,1757626313036,-750.29,0.00027945,7]
[384918062,1757626313046,-400.0,0.00027945,7]
[384918063,1757626313055,-400.0,0.00027945,7]
[384918064,1757626313065,-400.0,0.00027945,7]
[384918065,1757626313075,-921.53,0.00027945,7]
[384918066,1757626313085,-2140.08,0.00027945,7]
[384918067,1757626313095,-400.0,0.00027945,7]
[384918068,1757626313104,-4035.53,0.00027945,7]
[384918069,1757626313114,-400.0,0.00027945,7]
[384918070,1757626313123,-400.0,0.00027945,7]
[384918071,1757626313133,-400.0,0.00027945,7]
[384918072,1757626313143,-2532.72,0.00027945,7]
[384918073,1757626313152,-623.14,0.00027945,7]
[384918074,1757626313162,-416.36,0.00027945,7]
[384918075,1757626313172,-400.0,0.00027945,7]
[384918076,1757626313182,-400.0,0.00027945,7]
[384918077,1757626313192,-439.87,0.00027945,7]
[384918078,1757626313201,-400.0,0.00027945,7]
[384918079,1757626313211,-1142.25,0.00027945,7]
[384918080,1757626313221,-400.0,0.00027945,7]
[384918081,1757626313230,-801.3,0.00027945,7]
[384918082,1757626313240,-400.0,0.00027945,7]
[384918083,1757626313249,-400.0,0.00027945,7]
[384918084,1757626313259,-400.0,0.00027945,7]
[384918085,1757626313268,-400.0,0.00027945,7]
[384918086,1757626313278,-1249.35,0.00027945,7]
[384918087,1757626313287,-400.0,0.00027945,7]
[384918088,1757626313296,-1265.72,0.00027945,7]
[384918089,1757626313306,-508.8,0.00027945,7]
[384918090,1757626313316,-859.4,0.00027945,7]
[384918091,1757626313326,-400.0,0.00027945,7]
[384918092,1757626313335,-400.0,0.00027945,7]
[384918093,1757626313345,-1063.18666707,0.00027946,2]
[384918094,1757626313355,-168.0,0.00027949,2]
[384918095,1757626313364,-1010.41186236,0.00027956,2]
[384918096,1757626313374,-161.98,0.00027965,7]
[384918097,1757626313385,-700.0,0.0002797,2]
[384918098,1757626313395,-400.0,0.0002797,2]
[384918099,1757626313405,-501.88737059,0.00027973,2]
[384918100,1757626313416,-500.0,0.00027973,5]
[384918101,1757626313425,-500.0,0.00027973,5]
[384918102,1757626313435,-500.0,0.00027973,5]
[384918103,1757626313444,-500.0,0.00027973,5]
[384918104,1757626313454,-223.53547974,0.00027982,2]
[384918105,1757626313463,-640.02552982,0.0002799,2]
[384918106,1757626313472,-723.76718793,0.00027992,2]
[384918107,1757626313482,-807.50884604,0.00027994,2]
[384918108,1757626313491,-891.25050414,0.00027996,2]
[384918109,1757626313500,-974.99216224,0.00027998,2]
[384918110,1757626313509,-168.0,0.00027998,2]
[384918111,1757626313518,-314.55246,0.00028,4]
[384918112,1757626313527,-301.0,0.00028,7]
[384918113,1757626313536,-1000.0,0.00028,2]
[384918114,1757626313545,-1002.65569303,0.00028,3]
[384918115,1757626313554,-949.84,0.00028,7]
[384918116,1757626313563,-162497.37,0.00028,7]
[384918117,1757626313572,-168.0,0.00028018,2]
[384918118,1757626313582,-585.44,0.00028027,7]
[384918119,1757626313592,-585.44,0.00028027,7]
[384918120,1757626313601,-585.44,0.00028027,7]
[384918121,1757626313611,-585.44,0.00028027,7]
[384918122,1757626313620,-585.46,0.00028027,7]
[384918123,1757626313630,-1500.0,0.00028068,5]
[384918124,1757626313764,-160.76253675,0.00028072,7]
[384918125,1757626313774,-174.0,0.00028078,2]
[384918126,1757626313783,-168.0,0.00028091,2]
[384918127,1757626313793,-200.0,0.000281,7]
[384918128,1757626313802,-160.0,0.000281,3]
[384918129,1757626313811,-1000.0,0.000281,2]
[384918130,1757626313820,-168.15,0.0002811,2]
[384918131,1757626313829,-767.42320048,0.00028116,2]
[384918132,1757626313839,-168.0,0.0002812,2]
[384918133,1757626313852,-174.0,0.00028142,7]
[384918134,1757626313861,-168.0,0.00028169,2]
[384918135,1757626313871,-700.0,0.0002817,2]
[384918136,1757626313880,-400.0,0.0002817,2]
[384918137,1757626313890,-168.1369414,0.00028184,2]
[384918138,1757626313899,-150.0,0.00028185,2]
[384918139,1757626313908,-249.68550542,0.00028186,2]
[384918140,1757626313919,-213.30876788,0.0002819,2]
[384918141,1757626313930,-256.58148336,0.000282,2]
[384918142,1757626313940,-1000.0,0.000282,2]
[384918143,1757626313950,-500.0,0.00028219,7]
[384918144,1757626313960,-4190.0,0.00028219,7]
[384918145,1757626313971,-150.0,0.00028219,7]
[384918146,1757626313979,-500.0,0.00028219,7]
[384918147,1757626313988,-150.0,0.00028219,7]
[384918148,1757626313998,-500.0,0.00028219,2]
[384918149,1757626314007,-500.0,0.00028219,2]
[384918150,1757626314017,-500.0,0.00028219,2]
[384918151,1757626314026,-150.0,0.00028219,2]
[384918152,1757626314035,-500.0,0.00028219,2]
[384918153,1757626314045,-435.0,0.00028219,2]
[384918154,1757626314054,-500.0,0.00028219,2]
[384918155,1757626314063,-500.0,0.00028219,2]
[384918156,1757626314073,-500.0,0.00028219,2]
[384918157,1757626314082,-500.0,0.00028219,2]
[384918158,1757626314098,-500.0,0.00028219,2]
[384918159,1757626314107,-519.0,0.00028219,2]
[384918160,1757626314117,-500.0,0.00028219,2]
[384918161,1757626314126,-500.0,0.00028219,2]
[384918162,1757626314135,-500.0,0.00028219,2]
[384918163,1757626314146,-500.0,0.00028219,2]
[384918164,1757626314155,-500.0,0.00028219,2]
[384918165,1757626314164,-500.0,0.00028219,2]
[384918166,1757626314173,-500.0,0.00028219,2]
[384918167,1757626314182,-200.0,0.00028219,2]
[384918168,1757626314191,-500.0,0.00028219,2]
[384918169,1757626314200,-445.18368675,0.00028219,2]
[384918170,1757626314209,-400.0,0.00028219,7]
[384918171,1757626314218,-400.0,0.00028219,7]
[384918172,1757626314227,-2430.85,0.00028219,7]
[384918173,1757626314240,-1000.0,0.00028219,7]
[384918174,1757626314250,-1539.51,0.00028219,7]
[384918175,1757626314259,-1307.93,0.00028219,7]
[384918176,1757626314268,-1505.84,0.00028219,7]
[384918177,1757626314277,-400.0,0.00028219,7]
[384918178,1757626314286,-874.93,0.00028219,7]
[384918179,1757626314295,-502.06,0.00028219,7]
[384918180,1757626314304,-400.0,0.00028219,7]
[384918181,1757626314313,-972.68,0.00028219,7]
[384918182,1757626314322,-400.0,0.00028219,7]
[384918183,1757626314331,-666.77,0.00028219,7]
[384918184,1757626314339,-640.4,0.00028219,7]
[384918185,1757626314349,-976.02,0.00028219,7]
[384918186,1757626314358,-400.0,0.00028219,7]
[384918187,1757626314367,-400.0,0.00028219,7]
[384918188,1757626314376,-159.77,0.00028219,7]
[384918189,1757626314385,-400.0,0.00028219,7]
[384918190,1757626314394,-400.0,0.00028219,7]
[384918191,1757626314403,-522.79,0.00028219,7]
[384918192,1757626314412,-400.0,0.00028219,7]
[384918193,1757626314421,-400.0,0.00028219,7]
[384918194,1757626314430,-400.0,0.00028219,7]
[384918195,1757626314439,-458.57,0.00028219,7]
[384918196,1757626314448,-699.92,0.00028219,7]
[384918197,1757626314456,-817.36,0.00028219,7]
[384918198,1757626314466,-776.98,0.00028219,7]
[384918199,1757626314475,-461.58,0.00028219,7]
[384918200,1757626314484,-530.66,0.00028219,7]
[384918201,1757626314494,-925.9,0.00028219,7]
[384918202,1757626314503,-400.0,0.00028219,7]
[384918203,1757626314512,-401.02488933,0.00028219,7]
[384918204,1757626314522,-400.0,0.00028219,7]
[384918205,1757626314531,-400.0,0.00028219,7]
[384918206,1757626314539,-400.0,0.00028219,7]
[384918207,1757626314549,-461.07,0.00028219,7]
[384918208,1757626314558,-400.0,0.00028219,7]
[384918209,1757626314567,-400.0,0.00028219,7]
[384918210,1757626314577,-400.0,0.00028219,7]
[384918211,1757626314587,-400.0,0.00028219,7]
[384918212,1757626314596,-400.0,0.00028219,7]
[384918213,1757626314605,-400.0,0.00028219,7]
[384918214,1757626314614,-400.0,0.00028219,7]
[384918215,1757626314623,-499.08,0.00028219,7]
[384918216,1757626314633,-400.0,0.00028219,7]
[384918217,1757626314642,-400.0,0.00028219,7]
[384918218,1757626314651,-533.31,0.00028219,7]
[384918219,1757626314660,-400.0,0.00028219,7]
[384918220,1757626314669,-673.8,0.00028219,7]
[384918221,1757626314678,-548.17,0.00028219,7]
[384918222,1757626314686,-867.32,0.00028219,7]
[384918223,1757626314695,-716.58,0.00028219,7]
[384918224,1757626314704,-400.0,0.00028219,7]
[384918225,1757626314713,-400.0,0.00028219,7]
[384918226,1757626314722,-400.0,0.00028219,7]
[384918227,1757626314731,-1702.68,0.00028219,7]
[384918228,1757626314741,-680.3,0.00028219,7]
[384918229,1757626314750,-714.36,0.00028219,7]
[384918230,1757626314759,-400.0,0.00028219,7]
[384918231,1757626314768,-1610.6,0.00028219,7]
[384918232,1757626314777,-400.0,0.00028219,7]
[384918233,1757626314786,-605.89,0.00028219,7]
[384918234,1757626314795,-400.0,0.00028219,7]
[384918235,1757626314804,-400.0,0.00028219,7]
[384918236,1757626314814,-820.69,0.00028219,7]
[384918237,1757626314823,-919.41,0.00028219,7]
[384918238,1757626314832,-400.0,0.00028219,7]
[384918239,1757626314841,-645.47,0.00028219,7]
[384918240,1757626314850,-662.76,0.00028219,7]
[384918241,1757626314859,-400.0,0.00028219,7]
[384918242,1757626314873,-1650.2,0.00028219,7]
[384918243,1757626314882,-400.0,0.00028219,7]
[384918244,1757626314891,-257.7039896,0.00028219,7]
[384918245,1757626314901,-400.0,0.00028219,7]
[384918246,1757626314910,-400.0,0.00028219,7]
[384918247,1757626314920,-400.0,0.00028219,7]
[384918248,1757626314929,-755.29,0.00028219,7]
[384918249,1757626314938,-400.0,0.00028219,7]
[384918250,1757626314947,-400.0,0.00028219,7]
[384918251,1757626314956,-400.0,0.00028219,7]
[384918252,1757626314965,-400.0,0.00028219,7]
[384918253,1757626314974,-400.0,0.00028219,7]
[384918254,1757626314983,-400.0,0.00028219,7]
[384918255,1757626314992,-400.0,0.00028219,7]
[384918256,1757626315001,-293.75296033,0.00028219,7]
[384918257,1757626315010,-658.3,0.00028219,7]
[384918258,1757626315019,-464.61,0.00028219,7]
[384918259,1757626315028,-1622.49,0.00028219,7]
[384918260,1757626315037,-707.91,0.00028219,7]
[384918261,1757626315047,-913.6,0.00028219,7]
[384918262,1757626315057,-400.0,0.00028219,7]
[384918263,1757626315066,-400.0,0.00028219,7]
[384918264,1757626315075,-400.0,0.00028219,7]
[384918265,1757626315084,-1438.48,0.00028219,7]
[384918266,1757626315093,-400.0,0.00028219,7]
[384918267,1757626315102,-789.9,0.00028219,7]
[384918268,1757626315111,-448.46,0.00028219,7]
[384918269,1757626315120,-400.0,0.00028219,7]
[384918270,1757626315129,-400.0,0.00028219,7]
[384918271,1757626315139,-433.7,0.00028219,7]
[384918272,1757626315148,-668.76,0.00028219,7]
[384918273,1757626315158,-400.0,0.00028219,7]
[384918274,1757626315167,-1422.82,0.00028219,7]
[384918275,1757626315176,-400.0,0.00028219,7]
[384918276,1757626315185,-400.0,0.00028219,7]
[384918277,1757626315194,-746.76,0.00028219,7]
[384918278,1757626315203,-400.0,0.00028219,7]
[384918279,1757626315213,-701.31,0.00028219,7]
[384918280,1757626315222,-963.86,0.00028219,7]
[384918281,1757626315231,-1022.76,0.00028219,7]
[384918282,1757626315240,-605.48,0.00028219,7]
[384918283,1757626315249,-400.0,0.00028219,7]
[384918284,1757626315259,-400.0,0.00028219,7]
[384918285,1757626315268,-400.0,0.00028219,7]
[384918286,1757626315277,-400.0,0.00028219,7]
[384918287,1757626315286,-400.0,0.00028219,7]
[384918288,1757626315295,-400.0,0.00028219,7]
[384918289,1757626315303,-400.0,0.00028219,7]
[384918290,1757626315313,-1487.79,0.00028219,7]
[384918291,1757626315322,-2001.0,0.00028219,7]
[384918292,1757626315331,-400.0,0.00028219,7]
[384918293,1757626315339,-452.16,0.00028219,7]
[384918294,1757626315348,-658.34,0.00028219,7]
[384918295,1757626315357,-750.8,0.00028219,7]
[384918296,1757626315365,-516.69,0.00028219,7]
[384918297,1757626315374,-400.0,0.00028219,7]
[384918298,1757626315383,-400.0,0.00028219,7]
[384918299,1757626315392,-400.0,0.00028219,7]
[384918300,1757626315400,-400.0,0.00028219,7]
[384918301,1757626315409,-911.52,0.00028219,7]
[384918302,1757626315418,-400.0,0.00028219,7]
[384918303,1757626315427,-400.0,0.00028219,7]
[384918304,1757626315436,-400.0,0.00028219,7]
[384918305,1757626315445,-1269.91,0.00028219,7]
[384918306,1757626315454,-978.0,0.00028219,7]
[384918307,1757626315463,-478.97,0.00028219,7]
[384918308,1757626315472,-206.88653606,0.00028219,7]
[384918309,1757626315481,-400.0,0.00028219,7]
[384918310,1757626315490,-633.26,0.00028219,7]
[384918311,1757626315499,-400.0,0.00028219,7]
[384918312,1757626315509,-668.08,0.00028219,7]
[384918313,1757626315518,-400.0,0.00028219,7]
[384918314,1757626315527,-400.0,0.00028219,7]
[384918315,1757626315535,-400.0,0.00028219,7]
[384918316,1757626315544,-400.0,0.00028219,7]
[384918317,1757626315553,-400.0,0.00028219,7]
[384918318,1757626315562,-400.0,0.00028219,7]
[384918319,1757626315571,-425.40249717,0.00028219,7]
[384918320,1757626315581,-400.0,0.00028219,7]
[384918321,1757626315590,-400.0,0.00028219,7]
[384918322,1757626315600,-400.0,0.00028219,7]
[384918323,1757626315609,-411.09244965,0.00028219,7]
[384918324,1757626315618,-400.0,0.00028219,7]
[384918325,1757626315627,-400.0,0.00028219,7]
[384918326,1757626315636,-400.0,0.00028219,7]
[384918327,1757626315645,-1189.42,0.00028219,7]
[384918328,1757626315654,-1229.3,0.00028219,7]
[384918329,1757626315663,-400.0,0.00028219,7]
[384918330,1757626315673,-400.0,0.00028219,7]
[384918331,1757626315682,-400.0,0.00028219,7]
[384918332,1757626315691,-400.0,0.00028219,7]
[384918333,1757626315701,-400.0,0.00028219,7]
[384918334,1757626315710,-783.43,0.00028219,7]
[384918335,1757626315719,-1405.93,0.00028219,7]
[384918336,1757626315729,-400.0,0.00028219,7]
[384918337,1757626315738,-400.0,0.00028219,7]
[384918338,1757626315747,-400.0,0.00028219,7]
[384918339,1757626315756,-400.0,0.00028219,7]
[384918340,1757626315766,-400.0,0.00028219,7]
[384918341,1757626315775,-617.76,0.00028219,7]
[384918342,1757626315784,-400.0,0.00028219,7]
[384918343,1757626315793,-400.0,0.00028219,7]
[384918344,1757626315803,-400.0,0.00028219,7]
[384918345,1757626315812,-400.0,0.00028219,7]
[384918346,1757626315822,-500.33,0.00028219,7]
[384918347,1757626315831,-1509.07,0.00028219,7]
[384918348,1757626315840,-665.59,0.00028219,7]
[384918349,1757626315850,-306.64126308,0.00028219,7]
[384918350,1757626315860,-400.0,0.00028219,7]
[384918351,1757626315872,-400.0,0.00028219,7]
[384918352,1757626315882,-2223.5,0.00028219,7]
[384918353,1757626315891,-400.0,0.00028219,7]
[384918354,1757626315900,-400.0,0.00028219,7]
[384918355,1757626315910,-400.0,0.00028219,7]
[384918356,1757626315920,-706.92,0.00028219,7]
[384918357,1757626315929,-400.0,0.00028219,7]
[384918358,1757626315939,-687.06,0.00028219,7]
[384918359,1757626315949,-675.58,0.00028219,7]
[384918360,1757626315959,-400.0,0.00028219,7]
[384918361,1757626315968,-414.28,0.00028219,7]
[384918362,1757626315977,-400.0,0.00028219,7]
[384918363,1757626315987,-400.0,0.00028219,7]
[384918364,1757626315996,-604.99,0.00028219,7]
[384918365,1757626316006,-1568.03,0.00028219,7]
[384918366,1757626316015,-400.0,0.00028219,7]
[384918367,1757626316025,-1080.98,0.00028219,7]
[384918368,1757626316035,-639.19,0.00028219,7]
[384918369,1757626316044,-400.0,0.00028219,7]
[384918370,1757626316054,-658.25,0.00028219,7]
[384918371,1757626316064,-400.0,0.00028219,7]
[384918372,1757626316073,-400.0,0.00028219,7]
[384918373,1757626316083,-400.0,0.00028219,7]
[384918374,1757626316092,-400.0,0.00028219,7]
[384918375,1757626316101,-1185.68,0.00028219,7]
[384918376,1757626316111,-2026.42,0.00028219,7]
[384918377,1757626316120,-486.78,0.00028219,7]
[384918378,1757626316129,-1462.01,0.00028219,7]
[384918379,1757626316139,-400.0,0.00028219,7]
[384918380,1757626316148,-959.5,0.00028219,7]
[384918381,1757626316158,-1384.03,0.00028219,7]
[384918382,1757626316168,-401.24,0.00028219,7]
[384918383,1757626316178,-400.0,0.00028219,7]
[384918384,1757626316188,-729.54,0.00028219,7]
[384918385,1757626316197,-400.0,0.00028219,7]
[384918386,1757626316207,-400.0,0.00028219,7]
[384918387,1757626316217,-1015.96,0.00028219,7]
[384918388,1757626316226,-400.0,0.00028219,7]
[384918389,1757626316236,-993.35,0.00028219,7]
[384918390,1757626316246,-400.0,0.00028219,7]
[384918391,1757626316256,-534.87,0.00028219,7]
[384918392,1757626316266,-400.0,0.00028219,7]
[384918393,1757626316275,-400.0,0.00028219,7]
[384918394,1757626316285,-400.0,0.00028219,7]
[384918395,1757626316295,-400.0,0.00028219,7]
[384918396,1757626316306,-421.78,0.00028219,7]
[384918397,1757626316318,-508.7,0.00028219,7]
[384918398,1757626316327,-581.1,0.00028219,7]
[384918399,1757626316337,-400.0,0.00028219,7]
[384918400,1757626316347,-857.21,0.00028219,7]
[384918401,1757626316356,-400.0,0.00028219,7]
[384918402,1757626316366,-1875.33,0.00028219,7]
[384918403,1757626316376,-400.0,0.00028219,7]
[384918404,1757626316385,-611.92,0.00028219,7]
[384918405,1757626316396,-400.0,0.00028219,7]
[384918406,1757626316405,-400.0,0.00028219,7]
[384918407,1757626316415,-400.0,0.00028219,7]
[384918408,1757626316425,-1082.74,0.00028219,7]
[384918409,1757626316435,-400.0,0.00028219,7]
[384918410,1757626316444,-1458.01,0.00028219,7]
[384918411,1757626316455,-2074.81,0.00028219,7]
[384918412,1757626316472,-400.0,0.00028219,7]
[384918413,1757626316482,-400.0,0.00028219,7]
[384918414,1757626316492,-403.69,0.00028219,7]
[384918415,1757626316502,-2017.07,0.00028219,7]
[384918416,1757626316512,-1542.59,0.00028219,7]
[384918417,1757626316522,-1069.55,0.00028219,7]
[384918418,1757626316532,-400.0,0.00028219,7]
[384918419,1757626316542,-400.0,0.00028219,7]
[384918420,1757626316551,-400.0,0.00028219,7]
[384918421,1757626316562,-675.22,0.00028219,7]
[384918422,1757626316572,-400.0,0.00028219,7]
[384918423,1757626316582,-400.0,0.00028219,7]
[384918424,1757626316592,-651.85,0.00028219,7]
[384918425,1757626316602,-409.01358984,0.00028219,7]
[384918426,1757626316612,-400.0,0.00028219,7]
[384918427,1757626316622,-842.56,0.00028219,7]
[384918428,1757626316631,-992.87,0.00028219,7]
[384918429,1757626316641,-1540.56,0.00028219,7]
[384918430,1757626316651,-400.0,0.00028219,7]
[384918431,1757626316661,-631.63,0.00028219,7]
[384918432,1757626316671,-400.0,0.00028219,7]
[384918433,1757626316680,-653.96,0.00028219,7]
[384918434,1757626316690,-2317.74,0.00028219,7]
[384918435,1757626316700,-400.0,0.00028219,7]
[384918436,1757626316709,-416.44,0.00028219,7]
[384918437,1757626316718,-400.0,0.00028219,7]
[384918438,1757626316728,-400.0,0.00028219,7]
[384918439,1757626316737,-1093.62,0.00028219,7]
[384918440,1757626316746,-1372.67,0.00028219,7]
[384918441,1757626316756,-1809.95,0.00028219,7]
[384918442,1757626316765,-1680.38,0.00028219,7]
[384918443,1757626316775,-496.7,0.00028219,7]
[384918444,1757626316785,-1426.34,0.00028219,7]
[384918445,1757626316795,-1418.49,0.00028219,7]
[384918446,1757626316804,-590.87,0.00028219,7]
[384918447,1757626316814,-2920.79,0.00028219,7]
[384918448,1757626316824,-1466.44,0.00028219,7]
[384918449,1757626316833,-286.80083824,0.00028219,7]
[384918450,1757626316843,-2725.58,0.00028219,7]
[384918451,1757626316853,-2379.51,0.00028219,7]
[384918452,1757626316863,-1764.81,0.00028219,7]
[384918453,1757626316874,-400.0,0.00028219,7]
[384918454,1757626316884,-1011.29,0.00028219,7]
[384918455,1757626316893,-730.05,0.00028219,7]
[384918456,1757626316903,-400.0,0.00028219,7]
[384918457,1757626316913,-2269.22,0.00028219,7]